bitfinex-derivatives/quotes_SOLF0:USTF0_20250820
["timestamp","ask_amount","ask_price","bid_price","bid_amount"]
[1755711595628,2.83,184.36,184.33,5.45880842]
[1755711595831,3.83416931,184.35,184.33,5.45880842]
[1755711596034,2.83,184.36,184.33,5.45880842]
[1755711596227,3.83358372,184.35,184.33,5.45880842]
[1755711596428,2.83,184.36,184.33,5.45880842]
[1755711596725,3.83539848,184.35,184.33,5.45880842]
[1755711597024,2.83,184.36,184.33,5.45880842]
[1755711597227,3.83540943,184.35,184.33,5.45880842]
[1755711597427,136.4,184.37,184.34,5.4242]
[1755711597627,3.83644174,184.36,184.34,8.4742]
[1755711597835,3.83644174,184.35,184.34,8.4742]
[1755711598231,3.83644174,184.36,184.34,8.4742]
[1755711598534,3.83644174,184.35,184.33,5.45870842]
[1755711598740,136.4,184.37,184.33,5.45870842]
[1755711598937,3.83841547,184.36,184.33,5.45870842]
[1755711599137,3.83841547,184.35,184.33,5.45870842]
[1755711599340,139.39,184.37,184.33,5.45870842]
[1755711599536,3.83936974,184.36,184.33,5.45870842]
[1755711599732,3.83936974,184.35,184.33,5.45870842]
[1755711599933,136.4,184.37,184.33,0.03420842]
[1755711600234,2.99,184.35,184.33,0.03420842]
[1755711600433,6.82917458,184.34,184.33,0.03420842]
[1755711600738,9.34035033,184.34,184.25,3.05]
[1755711600937,2.99,184.32,184.25,3.05]
[1755711601240,6.82917458,184.31,184.27,3.05]
[1755711601442,3.83917458,184.3,184.27,3.05]
[1755711601934,3.83917458,184.29,184.27,3.05]
[1755711602134,0.03561841,184.3,184.27,3.05]
[1755711602327,3.83937937,184.29,184.27,3.05]
[1755711602536,3.83917392,184.28,184.27,3.05]
[1755711602737,3.83917392,184.28,184.22,3.0015659]
[1755711602935,0.03561841,184.3,184.22,3.0015659]
[1755711603135,3.8393098,184.29,184.23,3.05]
[1755711603433,3.8380132,184.28,184.26,3.05]
[1755711603639,2.99,184.29,184.26,3.05]
[1755711603841,3.83940974,184.28,184.26,3.05]
[1755711604047,2.99,184.29,184.26,3.05]
[1755711604343,3.83865491,184.28,184.26,3.05]
[1755711604540,0.03561841,184.3,184.22,3.0015659]
[1755711604840,3.84064118,184.29,184.28,3.05]
[1755711605041,0.03561841,184.3,184.28,3.05]
[1755711607042,3.84018648,184.29,184.28,3.05]
[1755711607345,3.84018648,184.29,184.27,5.4262]
[1755711607548,0.03561841,184.3,184.27,5.4262]
[1755711607740,3.83995704,184.29,184.27,5.4262]
[1755711607940,0.03561841,184.3,184.26,5.4266]
[1755711608142,3.84003878,184.29,184.22,3.0015659]
[1755711608340,3.84003878,184.28,184.24,8.477]
[1755711608647,2.99,184.29,184.2,3.05]
[1755711608840,2.99,184.27,184.2,3.05]
[1755711609440,3.83883851,184.26,184.21,5.4279]
[1755711609643,2.99,184.25,184.21,8.4779]
[1755711610040,2.99,184.25,184.21,5.4279]
[1755711610244,3.02555951,184.28,184.22,8.4778]
[1755711610441,2.99,184.26,184.22,3.05]
[1755711610638,2.99,184.25,184.22,3.05]
[1755711613553,0.03852386,184.26,184.22,3.05]
[1755711613854,3.02852386,184.26,184.22,3.05]
[1755711615554,3.02852386,184.26,184.23,3.05]
[1755711616651,2.99,184.25,184.2,5.4283]
[1755711616853,2.99,184.25,184.21,3.05]
[1755711617556,3.02852386,184.26,184.22,3.05]
[1755711618652,2.99,184.25,184.22,3.05]
[1755711618852,2.99,184.25,184.17,3.05]
[1755711619052,2.99,184.23,184.17,3.05]
[1755711619252,2.99,184.23,184.05,375.5854]
[1755711619253,2.99,184.23,184.14,8.4799]
[1755711619649,3.86408972,184.22,184.14,3.05]
[1755711619855,6.82014279,184.21,184.14,3.05]
[1755711620153,2.99,184.21,184.14,3.05]
[1755711620954,2.99,184.21,184.14,8.4799]
[1755711621553,2.99,184.21,184.15,5.4298]
[1755711621754,2.99,184.21,184.14,3.05]
[1755711622856,2.99,184.21,184.16,5.4296]
[1755711623056,2.99,184.21,184.16,8.4796]
[1755711623854,2.99,184.21,184.17,3.05]
[1755711624761,3.0015659,184.24,184.17,8.4793]
[1755711625257,2.99,184.25,184.17,3.05]
[1755711626356,2.99,184.25,184.18,5.4289]
[1755711626562,2.96,184.28,184.16,3.09]
[1755711626956,2.96,184.28,184.22,5.4277]
[1755711627157,2.96,184.28,184.21,3.09]
[1755711627357,138.82,184.31,184.21,3.09]
[1755711627860,138.82,184.31,184.23,5.4273]
[1755711628062,6.77932522,184.3,184.21,3.09]
[1755711628359,135.86,184.31,184.21,3.09]
[1755711628360,2.96,184.29,184.21,8.5181]
[1755711628562,2.96,184.29,184.21,3.09]
[1755711628862,2.96,184.29,184.22,5.4276]
[1755711629257,2.96,184.29,184.21,3.09]
[1755711629752,135.86,184.31,184.21,3.09]
[1755711629753,121.8164209,184.32,184.22,3.09]
[1755711630160,124.7764209,184.32,184.28,3.09]
[1755711630356,124.7764209,184.32,184.21,3.0015659]
[1755711630561,121.8164209,184.32,184.29,3.09]
[1755711630961,121.8164209,184.32,184.24,3.0015659]
[1755711631161,2.96,184.35,184.3,3.09]
[1755711631362,3.0015659,184.37,184.3,3.09]
[1755711631561,6.77959867,184.36,184.3,3.09]
[1755711631762,135.86,184.38,184.32,3.09]
[1755711632360,135.86,184.38,184.32,8.5149]
[1755711633060,135.86,184.38,184.32,3.09]
[1755711633771,5.9615659,184.36,184.27,3.09]
[1755711634066,3.82004722,184.35,184.27,3.09]
[1755711634267,5.9615659,184.36,184.27,3.09]
[1755711634467,2.96,184.34,184.27,3.09]
[1755711635463,2.96,184.34,184.27,8.5162]
[1755711636463,2.96,184.34,184.27,3.09]
[1755711636657,2.96,184.32,184.21,3.0015659]
[1755711636862,2.96,184.32,184.22,3.09]
[1755711637057,2.96,184.32,184.24,5.427]
[1755711637258,2.96,184.32,184.22,3.09]
[1755711637661,2.96,184.32,184.23,5.4275]
[1755711637968,2.96,184.3,184.22,3.09]
[1755711638162,5.9615659,184.3,184.22,3.09]
[1755711638366,6.78366909,184.29,184.19,3.09]
[1755711638573,2.96,184.29,184.19,3.09]
[1755711638971,2.96,184.29,184.2,5.4284]
[1755711639169,3.8239699,184.28,184.2,5.4284]
[1755711639365,2.96,184.29,184.2,5.4284]
[1755711639673,3.82426067,184.28,184.2,5.4284]
[1755711639869,2.96,184.29,184.2,5.4284]
[1755711640069,3.82426125,184.28,184.2,5.4284]
[1755711640265,2.96,184.29,184.19,8.5186]
[1755711640466,3.82487443,184.28,184.19,8.5186]
[1755711640665,2.96,184.29,184.19,8.5186]
[1755711640870,3.82487618,184.28,184.19,8.5186]
[1755711641071,2.96,184.29,184.19,8.5186]
[1755711641267,3.82567023,184.28,184.2,3.09]
[1755711641469,2.96,184.29,184.2,3.09]
[1755711641667,3.82566634,184.28,184.2,3.09]
[1755711641868,2.96,184.29,184.22,5.4278]
[1755711642069,3.82566673,184.28,184.22,5.4278]
[1755711642271,2.96,184.29,184.2,3.09]
[1755711642471,3.82655106,184.28,184.23,5.4276]
[1755711642672,3.0015659,184.3,184.24,3.09]
[1755711642872,3.82655106,184.29,184.16,3.0015659]
[1755711643075,6.78655106,184.28,184.17,3.09]
[1755711643273,2.96,184.28,184.17,3.09]
[1755711643474,2.96,184.28,184.16,3.0015659]
[1755711643681,2.96,184.28,184.2,3.09]
[1755711643975,2.96,184.28,184.2,8.5182]
[1755711644171,2.96,184.25,184.2,3.09]
[1755711644376,2.96,184.24,184.17,3.09]
[1755711644582,2.96,184.24,184.17,8.5192]
[1755711645075,2.96,184.24,184.17,3.09]
[1755711645576,0.03534128,184.22,184.18,3.09]
[1755711645771,0.03534128,184.22,184.19,3.09]
[1755711648377,0.03534128,184.22,184.2,3.09]
[1755711648566,0.03534128,184.22,184.21,3.09]
[1755711648770,0.03534128,184.22,184.21,8.5182]
[1755711653977,2.99534128,184.22,184.16,3.09]
[1755711657682,2.99534128,184.22,184.15,5.4298]
[1755711657888,2.99534128,184.22,184.14,2.8]
[1755711658287,2.99534128,184.22,184.14,8.23]
[1755711658478,5.99690718,184.22,184.14,2.8]
[1755711658988,2.81,184.21,184.13,5.4304]
[1755711660180,2.81,184.21,184.15,2.8]
[1755711660887,5.8115659,184.25,184.15,2.8]
[1755711661088,2.81,184.25,184.15,2.8]
[1755711661388,3.8182593,184.24,184.15,2.8]
[1755711661581,2.81,184.23,184.15,2.8]
[1755711661786,2.81,184.23,184.15,8.2299]
[1755711661985,2.81,184.23,184.15,2.8]
[1755711662281,2.81,184.23,184.15,8.2297]
[1755711662486,2.81,184.23,184.15,2.8]
[1755711662786,3.0015659,184.25,184.15,2.8]
[1755711662988,0.03716415,184.21,184.19,2.8]
[1755711664784,0.03716415,184.21,184.2,2.8]
[1755711665492,0.00017287,184.21,184.2,8.2285]
[1755711665692,367.61,184.31,184.2,3.34]
[1755711665990,3.81713453,184.3,184.21,2.8]
[1755711666192,3.81767736,184.29,184.23,5.4273]
[1755711666493,367.61,184.31,184.23,5.4273]
[1755711666686,3.81785124,184.3,184.24,5.4273]
[1755711666895,2.81,184.28,184.21,2.8]
[1755711667393,2.81,184.28,184.22,5.4279]
[1755711667994,2.81,184.28,184.24,2.8]
[1755711668588,364.8,184.31,184.25,2.8]
[1755711668787,3.81867686,184.3,184.25,2.8]
[1755711668993,364.8,184.31,184.24,2.8]
[1755711669193,6.62902751,184.3,184.24,2.8]
[1755711669392,2.81,184.3,184.24,2.8]
[1755711669595,2.81,184.3,184.23,5.46547798]
[1755711670399,2.81,184.3,184.23,0.03797798]
[1755711671293,3.8196864,184.29,184.23,5.46537798]
[1755711671593,2.81,184.3,184.23,0.03797798]
[1755711671789,2.81,184.3,184.23,2.83797798]
[1755711672590,2.81,184.33,184.23,2.83797798]
[1755711672793,2.81,184.31,184.23,2.83797798]
[1755711672994,3.81952485,184.3,184.23,2.83797798]
[1755711673702,3.81952485,184.3,184.23,8.26547798]
[1755711673998,3.81952485,184.3,184.23,2.83797798]
[1755711674198,3.81952485,184.3,184.25,5.4269]
[1755711674401,6.62952485,184.3,184.25,8.2269]
[1755711674697,2.81,184.29,184.25,8.2269]
[1755711675101,123.34515532,184.34,184.26,5.4267]
[1755711675399,3.81926743,184.33,184.24,3.0015659]
[1755711675692,123.34515532,184.34,184.25,2.8]
[1755711675897,3.81864052,184.33,184.28,5.4259]
[1755711676090,123.34515532,184.34,184.29,2.8]
[1755711676296,3.81893293,184.33,184.27,5.46123294]
[1755711676497,123.34515532,184.34,184.27,5.46123294]
[1755711676692,3.81865064,184.33,184.27,5.46123294]
[1755711676890,123.34515532,184.34,184.27,5.46123294]
[1755711677096,3.81865064,184.33,184.27,5.46123294]
[1755711677295,123.34515532,184.34,184.27,5.46123294]
[1755711677500,3.81956252,184.33,184.27,0.03493294]
[1755711677699,123.34515532,184.34,184.27,0.03493294]
[1755711677900,120.53515532,184.34,184.27,0.03493294]
[1755711678202,120.53515532,184.34,184.27,2.83493294]
[1755711678797,135.78,184.38,184.28,2.8]
[1755711678998,3.81950911,184.37,184.28,2.8]
[1755711679297,135.78,184.38,184.28,2.8]
[1755711679501,3.81824827,184.37,184.28,2.8]
[1755711679706,135.78,184.38,184.28,2.8]
[1755711679901,3.81824827,184.37,184.28,2.8]
[1755711680109,135.78,184.38,184.28,2.8]
[1755711680306,3.81846797,184.37,184.31,5.46271159]
[1755711680508,135.78,184.38,184.31,5.46271159]
[1755711680804,2.81,184.35,184.31,0.03771159]
[1755711681107,2.81,184.35,184.31,2.83771159]
[1755711681914,2.81,184.37,184.31,0.03771159]
[1755711682108,6.6261425,184.36,184.31,2.83771159]
[1755711682302,2.81,184.36,184.31,2.83771159]
[1755711682812,2.81,184.36,184.32,2.8]
[1755711683409,135.78,184.38,184.32,5.4247]
[1755711683607,364.8,184.39,184.32,2.8]
[1755711683804,3.83595922,184.38,184.32,2.8]
[1755711684008,364.8,184.39,184.32,2.8]
[1755711684210,138.55,184.4,184.32,2.8]
[1755711684410,3.83419193,184.39,184.32,2.8]
[1755711684606,138.55,184.4,184.32,2.8]
[1755711684916,138.53,184.43,184.33,3.0015659]
[1755711685215,3.8336577,184.42,184.35,2.8]
[1755711685408,2.81,184.42,184.35,2.8]
[1755711685607,2.81,184.42,184.37,0.03467391]
[1755711685913,135.72,184.43,184.37,0.03467391]
[1755711686214,2.82,184.39,184.37,0.03467391]
[1755711686517,2.82,184.38,184.37,0.03467391]
[1755711686812,3.0015659,184.43,184.37,0.03467391]
[1755711687011,135.72,184.41,184.37,0.03467391]
[1755711687215,2.82,184.39,184.37,0.03467391]
[1755711687919,138.54,184.41,184.37,0.03467391]
[1755711688215,138.54,184.41,184.37,3.01467391]
[1755711688415,135.72,184.41,184.37,3.01467391]
[1755711688616,2.82,184.44,184.37,3.01467391]
[1755711689419,2.82,184.44,184.39,8.4028]
[1755711690219,253.2127834,184.46,184.38,2.98]
[1755711690419,135.7,184.46,184.38,5.9815659]
[1755711691120,135.7,184.46,184.41,5.4221]
[1755711691322,135.7,184.46,184.38,5.9815659]
[1755711691712,135.7,184.46,184.42,2.98]
[1755711692026,2.82,184.48,184.44,2.98]
[1755711692420,138.5,184.5,184.44,2.98]
[1755711692621,135.68,184.5,184.44,2.98]
[1755711693116,135.68,184.5,184.45,0.03431347]
[1755711693321,138.5,184.5,184.45,0.03431347]
[1755711693522,2.82,184.49,184.45,0.03431347]
[1755711694020,135.68,184.5,184.45,0.03431347]
[1755711694226,5.8215659,184.49,184.45,0.03431347]
[1755711694418,3.0015659,184.49,184.45,0.03431347]
[1755711694826,3.81214684,184.48,184.45,0.03431347]
[1755711695121,2.82,184.46,184.45,0.03431347]
[1755711697122,3.0015659,184.49,184.45,0.03431347]
[1755711697322,2.82,184.48,184.45,0.03431347]
[1755711699028,3.0015659,184.49,184.45,0.03431347]
[1755711699218,2.82,184.46,184.45,0.03431347]
[1755711703031,2.82,184.57,184.45,0.03431347]
[1755711703331,2.82,184.54,184.45,0.03431347]
[1755711703532,3.80830978,184.53,184.44,2.98]
[1755711703729,5.8215659,184.54,184.44,2.98]
[1755711703927,6.62682052,184.53,184.48,0.03741151]
[1755711704126,3.0015659,184.54,184.48,3.01741151]
[1755711704326,2.82,184.52,184.48,0.03741151]
[1755711704526,5.8215659,184.54,184.48,0.03741151]
[1755711704726,2.82,184.52,184.48,0.03741151]
[1755711705138,2.82,184.51,184.48,0.03741151]
[1755711705428,2.82,184.49,184.48,0.03741151]
[1755711708330,2.82,184.49,184.4,2.98]
[1755711708524,3.0015659,184.47,184.4,2.98]
[1755711709631,0.03737544,184.45,184.35,3.0015659]
[1755711709834,2.85737544,184.45,184.41,2.98]
[1755711710036,2.85737544,184.45,184.38,8.4029]
[1755711710230,2.82,184.45,184.38,8.4029]
[1755711710735,0.04176126,184.43,184.38,5.4229]
[1755711710935,0.04176126,184.43,184.4,2.98]
[1755711711233,3.0015659,184.41,184.35,2.98]
[1755711711934,0.03423229,184.4,184.36,2.98]
[1755711712134,0.03423229,184.4,184.39,8.4028]
[1755711712534,3.0015659,184.47,184.39,2.98]
[1755711712833,0.04045636,184.41,184.39,2.98]
[1755711713135,0.04045636,184.41,184.4,2.98]
[1755711713331,3.0015659,184.47,184.4,2.98]
[1755711713934,0.04046177,184.45,184.41,2.98]
[1755711714230,0.04046177,184.45,184.43,2.98]
[1755711714633,2.82,184.47,184.43,2.98]
[1755711714932,0.04131598,184.46,184.43,2.98]
[1755711715133,0.04131598,184.46,184.44,2.98]
[1755711715527,3.0015659,184.48,184.43,5.4215]
[1755711715737,3.0015659,184.51,184.4,2.81]
[1755711715927,0.03946368,184.47,184.4,2.81]
[1755711716131,0.03946368,184.47,184.45,5.4209]
[1755711716332,0.03946368,184.47,184.46,2.81]
[1755711717342,0.03946368,184.47,184.44,5.4213]
[1755711717641,0.03946368,184.47,184.45,2.81]
[1755711717838,0.03946368,184.47,184.45,8.2311]
[1755711718034,0.03946368,184.47,184.45,2.81]
[1755711718343,0.03946368,184.47,184.44,2.81]
[1755711718634,0.03946368,184.47,184.38,2.81]
[1755711718845,2.84,184.51,184.38,2.81]
[1755711719144,0.04048783,184.44,184.43,5.4217]
[1755711719342,0.04048783,184.44,184.43,8.2317]
[1755711719535,2.84,184.51,184.43,2.81]
[1755711719735,2.84,184.51,184.47,2.81]
[1755711719944,2.84,184.51,184.46,5.4207]
[1755711720131,0.04047668,184.51,184.48,2.81]
[1755711721635,0.04047668,184.51,184.47,5.4205]
[1755711721940,2.88047668,184.51,184.47,2.81]
[1755711722837,2.88047668,184.51,184.47,8.2304]
[1755711723037,2.88047668,184.51,184.47,2.81]
[1755711723240,0.04047668,184.51,184.48,2.81]
[1755711724446,0.04047668,184.51,184.49,2.81]
[1755711724637,0.04047668,184.51,184.48,5.42]
[1755711724848,0.04047668,184.51,184.5,2.81]
[1755711725045,0.04047668,184.51,184.49,5.4199]
[1755711725343,0.04047668,184.51,184.49,2.81]
[1755711725742,0.04047668,184.51,184.5,2.81]
[1755711727641,0.04047668,184.51,184.5,8.2296]
[1755711728245,0.04047668,184.51,184.49,0.03529259]
[1755711728749,0.04047668,184.51,184.5,8.2296]
[1755711729046,0.04047668,184.51,184.49,0.03529259]
[1755711729246,2.84,184.5,184.49,0.03529259]
[1755711731046,2.84,184.5,184.43,5.4216]
[1755711731350,2.84,184.48,184.4,2.81]
[1755711731650,2.84,184.48,184.4,8.2323]
[1755711731851,2.84,184.48,184.4,2.81]
[1755711732043,3.0015659,184.46,184.4,2.81]
[1755711732451,3.04040508,184.46,184.4,2.81]
[1755711734045,5.88040508,184.46,184.4,2.81]
[1755711734246,0.03883918,184.46,184.4,2.81]
[1755711734444,0.03883918,184.46,184.43,8.2315]
[1755711734751,0.03883918,184.46,184.43,2.81]
[1755711734952,5.8415659,184.51,184.43,2.81]
[1755711735153,0.03854912,184.46,184.43,2.81]
[1755711735453,2.87854912,184.46,184.37,2.81]
[1755711735847,2.84,184.46,184.37,2.81]
[1755711736046,2.84,184.46,184.4,5.4224]
[1755711736249,0.03872851,184.43,184.37,2.81]
[1755711736545,2.87872851,184.43,184.37,2.81]
[1755711736747,2.84,184.43,184.37,2.81]
[1755711737152,2.88088847,184.42,184.37,8.2334]
[1755711737355,0.04088847,184.42,184.31,2.81]
[1755711737651,0.04088847,184.42,184.39,2.81]
[1755711737854,3.0015659,184.45,184.31,2.81]
[1755711738046,3.0015659,184.45,184.4,5.4224]
[1755711738255,0.03467712,184.42,184.34,2.81]
[1755711739450,0.03467712,184.42,184.37,2.81]
[1755711739852,0.03467712,184.42,184.41,8.2323]
[1755711740050,2.84,184.5,184.41,2.81]
[1755711740360,5.8415659,184.5,184.41,2.81]
[1755711740760,2.84,184.49,184.41,2.81]
[1755711741451,2.84,184.45,184.37,2.81]
[1755711742055,0.03739209,184.43,184.37,2.81]
[1755711742857,0.03739209,184.43,184.34,2.81]
[1755711743253,0.03739209,184.43,184.41,5.422]
[1755711743649,0.03739209,184.43,184.41,8.232]
[1755711743850,0.94348575,184.59,184.41,90.0]
[1755711744054,2.84,184.61,184.49,2.81]
[1755711744254,2.84,184.65,184.53,2.81]
[1755711744757,2.84,184.65,184.48,10.8399]
[1755711744758,2.84,184.65,184.56,2.81]
[1755711744950,2.84,184.69,184.56,2.81]
[1755711745157,2.84,184.69,184.59,2.81]
[1755711745355,2.84,184.69,184.59,2.84543016]
[1755711747162,2.84,184.69,184.61,5.4161]
[1755711748059,2.84,184.69,184.59,2.81]
[1755711748259,2.84,184.69,184.63,0.03709173]
[1755711748659,2.84,184.69,184.64,5.4154]
[1755711748859,3.01,184.68,184.64,5.4154]
[1755711749963,3.01,184.68,184.64,5.45103042]
[1755711750158,3.01,184.68,184.65,5.4152]
[1755711750361,3.01,184.74,184.65,5.4152]
[1755711751163,3.01,184.74,184.68,0.03421844]
[1755711756472,364.36,184.75,184.68,0.03421844]
[1755711756770,364.36,184.75,184.68,3.02421844]
[1755711756975,3.01,184.76,184.68,3.02421844]
[1755711757276,3.01,184.76,184.71,5.4134]
[1755711757474,3.01,184.76,184.68,3.02421844]
[1755711757675,136.42,184.79,184.68,3.02421844]
[1755711757866,136.42,184.79,184.71,5.4134]
[1755711758268,3.01,184.8,184.71,2.99]
[1755711758468,364.02,184.86,184.71,2.99]
[1755711758469,3.01,184.84,184.71,2.99]
[1755711758673,136.36,184.83,184.73,0.04086122]
[1755711758870,136.36,184.83,184.74,8.4025]
[1755711759677,3.01,184.82,184.74,2.99]
[1755711759873,3.01,184.82,184.73,0.04086122]
[1755711760180,136.3,184.81,184.73,3.03086122]
[1755711760476,139.31,184.81,184.73,0.04086122]
[1755711761076,139.31,184.81,184.73,5.45366122]
[1755711761874,139.31,184.81,184.73,0.04086122]
[1755711762380,136.3,184.81,184.73,0.04086122]
[1755711762568,3.01,184.8,184.73,0.04086122]
[1755711767077,3.01,184.75,184.73,0.04086122]
[1755711767277,136.28,184.74,184.64,2.99]
[1755711768476,0.03932782,184.71,184.64,2.99]
[1755711769577,0.03932782,184.71,184.64,8.4055]
[1755711769777,0.03932782,184.71,184.64,2.99]
[1755711770686,0.03932782,184.71,184.69,2.99]
[1755711771379,0.03932782,184.71,184.65,2.99]
[1755711772085,0.03932782,184.71,184.7,2.99]
[1755711773483,139.27,184.79,184.7,2.99]
[1755711773687,136.26,184.79,184.7,2.99]
[1755711773886,3.01,184.83,184.7,2.99]
[1755711774991,3.01,184.83,184.75,0.03478593]
[1755711780392,2.99,184.81,184.75,0.03478593]
[1755711780594,2.99,184.79,184.75,0.03478593]
[1755711780787,2.99,184.77,184.75,0.03478593]
[1755711780988,4.97783593,184.78,184.75,0.03478593]
[1755711781191,2.99,184.76,184.75,0.03478593]
[1755711781387,2.99,184.76,184.68,3.06]
[1755711781594,2.99,184.76,184.64,3.06]
[1755711782489,2.99,184.76,184.68,3.06]
[1755711782795,0.03834611,184.72,184.69,3.06]
[1755711783294,2.99,184.86,184.71,3.06]
[1755711783492,2.99,184.88,184.71,3.06]
[1755711783692,4.97783593,184.85,184.71,3.06]
[1755711783893,2.99,184.84,184.71,3.06]
[1755711784091,2.99,184.84,184.69,3.06]
[1755711784689,2.99,184.84,184.75,0.0363508]
[1755711785493,2.99,184.84,184.75,3.0963508]
[1755711786297,2.99,184.84,184.76,5.412]
[1755711786499,2.99,184.84,184.75,3.0963508]
[1755711786692,191.67611554,184.89,184.75,3.0963508]
[1755711786995,140.15,184.88,184.76,3.06]
[1755711787199,140.15,184.88,184.77,5.4115]
[1755711787397,140.15,184.88,184.8,0.03625931]
[1755711788687,2.99,184.88,184.8,8.50705931]
[1755711788893,2.99,184.88,184.8,3.09625931]
[1755711789497,2.99,184.88,184.8,0.03625931]
[1755711790804,2.99,184.87,184.8,0.03625931]
[1755711791006,2.99,184.84,184.8,0.03625931]
[1755711791601,2.99,184.83,184.8,0.03625931]
[1755711791901,140.05,184.82,184.8,0.03625931]
[1755711792107,2.99,184.81,184.7,3.06]
[1755711792307,2.99,184.8,184.7,3.06]
[1755711792710,2.99,184.8,184.66,3.06]
[1755711793102,2.99,184.8,184.66,8.4749]
[1755711793506,0.03974635,184.75,184.66,3.06]
[1755711794211,0.03974635,184.75,184.67,3.06]
[1755711794505,0.03974635,184.75,184.74,8.4726]
[1755711797410,140.09,184.84,184.78,5.4114]
[1755711797907,2.99,184.84,184.8,3.06]
[1755711798108,136.98,184.87,184.8,3.06]
[1755711798510,136.98,184.87,184.82,0.03644042]
[1755711798711,2.99,184.85,184.82,0.03644042]
[1755711799215,139.93,184.88,184.82,0.03644042]
[1755711800006,2.99,184.87,184.82,0.03644042]
[1755711800210,136.94,184.88,184.82,0.03644042]
[1755711800410,2.99,184.86,184.82,0.03644042]
[1755711800711,2.99,184.85,184.82,0.03644042]
[1755711801012,2.99,184.84,184.82,0.03644042]
[1755711801213,2.99,184.83,184.82,0.03644042]
[1755711802013,3.53,184.83,184.73,3.06]
[1755711802210,2.99,184.83,184.73,3.06]
[1755711803810,0.03561874,184.8,184.73,3.06]
[1755711804020,136.86,184.79,184.73,3.06]
[1755711804615,0.03561874,184.8,184.73,3.06]
[1755711805720,0.03561874,184.8,184.73,8.4728]
[1755711806117,0.03561874,184.8,184.73,3.06]
[1755711807306,0.03561874,184.8,184.73,8.4726]
[1755711807706,0.03561874,184.8,184.74,5.4125]
[1755711807906,0.03561874,184.8,184.73,3.06]
[1755711809313,0.03561874,184.8,184.69,4.97783593]
[1755711809620,0.03561874,184.8,184.7,3.05]
[1755711809914,137.36,184.84,184.75,8.4622]
[1755711810116,0.03492157,184.77,184.69,4.97783593]
[1755711810319,0.03492157,184.77,184.7,3.05]
[1755711810517,137.36,184.84,184.76,5.4117]
[1755711810923,137.36,184.84,184.77,5.4116]
[1755711811116,0.03561099,184.82,184.78,3.05]
[1755711811414,0.03561099,184.82,184.7,3.05]
[1755711811622,0.03561099,184.82,184.79,3.05]
[1755711811812,137.36,184.84,184.7,3.05]
[1755711812213,0.04057597,184.82,184.7,3.05]
[1755711812613,137.36,184.84,184.7,3.05]
[1755711813015,0.03870404,184.78,184.7,3.05]
[1755711813218,0.03870404,184.78,184.76,5.4119]
[1755711813419,0.03870404,184.78,184.77,3.05]
[1755711813817,0.03870404,184.78,184.77,8.4617]
[1755711817125,366.57,184.88,184.77,3.59]
[1755711817325,366.57,184.88,184.77,3.05]
[1755711817721,366.57,184.88,184.82,5.41]
[1755711818121,366.57,184.88,184.8,3.05]
[1755711818322,366.57,184.88,184.83,0.04059734]
[1755711818527,2.87,184.87,184.83,0.04059734]
[1755711819816,2.87,184.86,184.83,0.04059734]
[1755711820016,363.7,184.88,184.83,0.04059734]
[1755711820419,2.87,184.84,184.83,0.04059734]